[Event "Titled Tuesday Blitz May 2 Late 2023"]
[White "Chemin, Justo Reinaldo"]
[Black "Ozates, Tuna"]
[WhiteFideId "2101580"]
[BlackFideId "6354521"]
[WhiteElo "1940"]
[BlackElo "2151"]
[Result "0-1"]
[Round "01"]
[TimeControl "180+2"]
[Date "2023.05.02"]
[WhiteClock "0:00:00"]
[BlackClock "0:00:00"]

1. e4 {[%clk 0:00:01]}  c5 {[%clk 0:00:01]} 2. Nf3 {[%clk 0:00:01]}  Nc6 {[%clk 0:00:01]} 3. d3 {[%clk 0:00:01]}  d6 {[%clk 0:00:01]} 4. Nc3 {[%clk 0:00:01]}  g6 {[%clk 0:00:01]} 5. g3 {[%clk 0:00:01]}  Bg7 {[%clk 0:00:01]} 6. Bg2 {[%clk 0:00:01]}  e5 {[%clk 0:00:01]} 7. O-O {[%clk 0:00:01]}  Nge7 {[%clk 0:00:01]} 8. Nh4 {[%clk 0:00:01]}  O-O {[%clk 0:00:01]} 9. f4 {[%clk 0:00:01]}  exf4 {[%clk 0:00:01]} 10. gxf4 {[%clk 0:00:01]}  f5 {[%clk 0:00:01]} 11. Nf3 {[%clk 0:00:01]}  fxe4 {[%clk 0:00:01]} 12. Nxe4 {[%clk 0:00:01]}  Bg4 {[%clk 0:00:01]} 13. c3 {[%clk 0:00:01]}  b6 {[%clk 0:00:01]} 14. h3 {[%clk 0:00:01]}  Bf5 {[%clk 0:00:01]} 15. Ng3 {[%clk 0:00:01]}  Qd7 {[%clk 0:00:01]} 16. Kh2 {[%clk 0:00:01]}  d5 {[%clk 0:00:01]} 17. Nh4 {[%clk 0:00:01]}  Be6 {[%clk 0:00:01]} 18. Qe2 {[%clk 0:00:01]}  Rae8 {[%clk 0:00:01]} 19. Bd2 {[%clk 0:00:01]}  d4 {[%clk 0:00:01]} 20. Rae1 {[%clk 0:00:01]}  Nd5 {[%clk 0:00:01]} 21. c4 {[%clk 0:00:00]}  Nf6 {[%clk 0:00:00]} 22. Qf3 {[%clk 0:00:00]}  Ne7 {[%clk 0:00:00]} 23. f5 {[%clk 0:00:00]}  Nxf5 {[%clk 0:00:00]} 24. Nhxf5 {[%clk 0:00:00]}  Bxf5 {[%clk 0:00:00]} 25. Nxf5 {[%clk 0:00:00]}  Qxf5 {[%clk 0:00:00]} 26. Qxf5 {[%clk 0:00:00]}  gxf5 {[%clk 0:00:00]} 27. Rxf5 {[%clk 0:00:00]}  Rxe1 {[%clk 0:00:00]} 28. Bxe1 {[%clk 0:00:00]}  Re8 {[%clk 0:00:00]} 29. Bh4 {[%clk 0:00:00]}  Kf7 {[%clk 0:00:00]} 30. Bd5+ {[%clk 0:00:00]}  Kg6 {[%clk 0:00:00]} 31. Rg5+ {[%clk 0:00:00]}  Kh6 {[%clk 0:00:00]} 32. Rg2 {[%clk 0:00:00]}  Nxd5 {[%clk 0:00:00]} 33. Bg5+ {[%clk 0:00:00]}  Kh5 {[%clk 0:00:00]} 34. cxd5 {[%clk 0:00:00]}  Be5+ {[%clk 0:00:00]} 35. Kg1 {[%clk 0:00:00]}  Bd6 {[%clk 0:00:00]} 36. Bd2 {[%clk 0:00:00]}  Re5 {[%clk 0:00:00]} 37. Rg7 {[%clk 0:00:00]}  Re7 {[%clk 0:00:00]} 38. Rg5+ {[%clk 0:00:00]}  Kh4 {[%clk 0:00:00]} 39. Rg2 {[%clk 0:00:00]}  Kxh3 {[%clk 0:00:00]} 40. Rg7 {[%clk 0:00:00]}  Rxg7+ {[%clk 0:00:00]} 0-1


[Site "https://www.chess.com"]

[Event "Titled Tuesday Blitz May 2 Late 2023"]
[White "Kavutskiy, Konstantin"]
[Black "Fuentes Godoy, Lilia Ivonne"]
[WhiteFideId "2026384"]
[BlackFideId "5104130"]
[WhiteElo "2323"]
[BlackElo "2096"]
[Result "1-0"]
[Round "01"]
[TimeControl "180+2"]
[Date "2023.05.02"]
[WhiteClock "0:00:00"]
[BlackClock "0:00:00"]

1. d4 {[%clk 0:00:01]}  d5 {[%clk 0:00:01]} 2. c4 {[%clk 0:00:01]}  e6 {[%clk 0:00:01]} 3. Nf3 {[%clk 0:00:01]}  c6 {[%clk 0:00:01]} 4. e3 {[%clk 0:00:01]}  f5 {[%clk 0:00:01]} 5. b3 {[%clk 0:00:01]}  Bd6 {[%clk 0:00:01]} 6. Bd3 {[%clk 0:00:01]}  Nf6 {[%clk 0:00:01]} 7. O-O {[%clk 0:00:01]}  Qe7 {[%clk 0:00:01]} 8. Bb2 {[%clk 0:00:01]}  O-O {[%clk 0:00:01]} 9. Qc1 {[%clk 0:00:01]}  Ne4 {[%clk 0:00:01]} 10. Ba3 {[%clk 0:00:01]}  Bxa3 {[%clk 0:00:01]} 11. Qxa3 {[%clk 0:00:01]}  Qxa3 {[%clk 0:00:01]} 12. Nxa3 {[%clk 0:00:01]}  Bd7 {[%clk 0:00:01]} 13. Rac1 {[%clk 0:00:01]}  Be8 {[%clk 0:00:01]} 14. Ne5 {[%clk 0:00:01]}  Nd7 {[%clk 0:00:01]} 15. f4 {[%clk 0:00:01]}  Nxe5 {[%clk 0:00:01]} 16. fxe5 {[%clk 0:00:01]}  Bh5 {[%clk 0:00:01]} 17. Bxe4 {[%clk 0:00:01]}  fxe4 {[%clk 0:00:01]} 18. Nb1 {[%clk 0:00:00]}  Be2 {[%clk 0:00:01]} 19. Rxf8+ {[%clk 0:00:00]}  Kxf8 {[%clk 0:00:01]} 20. cxd5 {[%clk 0:00:00]}  exd5 {[%clk 0:00:01]} 21. Rc2 {[%clk 0:00:00]}  Bd3 {[%clk 0:00:01]} 22. Rf2+ {[%clk 0:00:00]}  Ke7 {[%clk 0:00:01]} 23. Nc3 {[%clk 0:00:00]}  a5 {[%clk 0:00:01]} 24. Rf4 {[%clk 0:00:00]}  b5 {[%clk 0:00:00]} 25. Rg4 {[%clk 0:00:00]}  Kf7 {[%clk 0:00:00]} 26. h4 {[%clk 0:00:00]}  a4 {[%clk 0:00:00]} 27. b4 {[%clk 0:00:00]}  a3 {[%clk 0:00:00]} 28. Kf2 {[%clk 0:00:00]}  g6 {[%clk 0:00:00]} 29. Rf4+ {[%clk 0:00:00]}  Ke7 {[%clk 0:00:00]} 30. Kg3 {[%clk 0:00:00]}  Bc4 {[%clk 0:00:00]} 31. Rf6 {[%clk 0:00:00]}  Rf8 {[%clk 0:00:00]} 32. Rxc6 {[%clk 0:00:00]}  Rf1 {[%clk 0:00:00]} 33. Ra6 {[%clk 0:00:00]}  Re1 {[%clk 0:00:00]} 34. Kf2 {[%clk 0:00:00]}  Rc1 {[%clk 0:00:00]} 35. Rxa3 {[%clk 0:00:00]}  Rc2+ {[%clk 0:00:00]} 36. Kg3 {[%clk 0:00:00]}  Rc1 {[%clk 0:00:00]} 37. h5 {[%clk 0:00:00]}  Rc2 {[%clk 0:00:00]} 38. h6 {[%clk 0:00:00]}  Bf1 {[%clk 0:00:00]} 39. Nxd5+ {[%clk 0:00:00]}  Ke6 {[%clk 0:00:00]} 40. Nf4+ {[%clk 0:00:00]}  Kf5 {[%clk 0:00:00]} 41. Ra6 {[%clk 0:00:00]} 1-0


[Site "https://www.chess.com"]

[Event "Titled Tuesday Blitz May 2 Late 2023"]
[White "Ricaurte Lopez, Juan Carlos"]
[Black "Becerra, Juan David"]
[WhiteFideId "3600327"]
[BlackFideId "4404998"]
[WhiteElo "2200"]
[BlackElo "2276"]
[Result "0-1"]
[Round "01"]
[TimeControl "180+2"]
[Date "2023.05.02"]
[WhiteClock "0:00:00"]
[BlackClock "0:00:00"]

1. e4 {[%clk 0:00:01]}  c5 {[%clk 0:00:01]} 2. d4 {[%clk 0:00:01]}  cxd4 {[%clk 0:00:01]} 3. c3 {[%clk 0:00:01]}  dxc3 {[%clk 0:00:01]} 4. Nxc3 {[%clk 0:00:01]}  d6 {[%clk 0:00:01]} 5. Nf3 {[%clk 0:00:01]}  a6 {[%clk 0:00:01]} 6. Bc4 {[%clk 0:00:01]}  Nc6 {[%clk 0:00:01]} 7. O-O {[%clk 0:00:01]}  Nf6 {[%clk 0:00:01]} 8. e5 {[%clk 0:00:01]}  dxe5 {[%clk 0:00:01]} 9. Qxd8+ {[%clk 0:00:01]}  Nxd8 {[%clk 0:00:01]} 10. Nxe5 {[%clk 0:00:01]}  Be6 {[%clk 0:00:01]} 11. Be3 {[%clk 0:00:01]}  g6 {[%clk 0:00:01]} 12. Bb6 {[%clk 0:00:01]}  Rc8 {[%clk 0:00:01]} 13. Bb3 {[%clk 0:00:01]}  Bxb3 {[%clk 0:00:01]} 14. axb3 {[%clk 0:00:01]}  Nc6 {[%clk 0:00:01]} 15. Nc4 {[%clk 0:00:01]}  Bg7 {[%clk 0:00:01]} 16. Rfe1 {[%clk 0:00:01]}  O-O {[%clk 0:00:01]} 17. Rad1 {[%clk 0:00:01]}  Rfe8 {[%clk 0:00:01]} 18. h3 {[%clk 0:00:00]}  Nb8 {[%clk 0:00:00]} 19. Nd5 {[%clk 0:00:00]}  Nxd5 {[%clk 0:00:00]} 20. Rxd5 {[%clk 0:00:00]}  Rc6 {[%clk 0:00:00]} 21. Red1 {[%clk 0:00:00]}  Rcc8 {[%clk 0:00:00]} 22. g3 {[%clk 0:00:00]}  Bf6 {[%clk 0:00:00]} 23. Kg2 {[%clk 0:00:00]}  Kg7 {[%clk 0:00:00]} 24. f4 {[%clk 0:00:00]}  h5 {[%clk 0:00:00]} 25. g4 {[%clk 0:00:00]}  hxg4 {[%clk 0:00:00]} 26. hxg4 {[%clk 0:00:00]}  e6 {[%clk 0:00:00]} 27. R5d3 {[%clk 0:00:00]}  Rc6 {[%clk 0:00:00]} 28. g5 {[%clk 0:00:00]}  Bxb2 {[%clk 0:00:00]} 29. Rd8 {[%clk 0:00:00]}  Rxd8 {[%clk 0:00:00]} 30. Rxd8 {[%clk 0:00:00]}  Rxb6 {[%clk 0:00:00]} 31. Nxb6 {[%clk 0:00:00]}  Nc6 {[%clk 0:00:00]} 32. Rd7 {[%clk 0:00:00]}  Na5 {[%clk 0:00:00]} 33. Nc4 {[%clk 0:00:00]}  Nxc4 {[%clk 0:00:00]} 34. Rxb7 {[%clk 0:00:00]}  Ne3+ {[%clk 0:00:00]} 35. Kf3 {[%clk 0:00:00]}  Nd5 {[%clk 0:00:00]} 36. Ra7 {[%clk 0:00:00]}  Bc1 {[%clk 0:00:00]} 37. Rxa6 {[%clk 0:00:00]}  Bxf4 {[%clk 0:00:00]} 38. Kg4 {[%clk 0:00:00]}  Bd2 {[%clk 0:00:00]} 39. Ra7 {[%clk 0:00:00]}  Bb4 {[%clk 0:00:00]} 40. Rd7 {[%clk 0:00:00]}  Bc3 {[%clk 0:00:00]} 41. Kf3 {[%clk 0:00:00]}  Kf8 {[%clk 0:00:00]} 42. Ke4 {[%clk 0:00:00]}  Bd2 {[%clk 0:00:00]} 43. Ke5 {[%clk 0:00:00]}  Bxg5 {[%clk 0:00:00]} 44. Kd6 {[%clk 0:00:00]}  Bf4+ {[%clk 0:00:00]} 45. Kc6 {[%clk 0:00:00]}  Bd2 {[%clk 0:00:00]} 46. Kc5 {[%clk 0:00:00]}  Bb4+ {[%clk 0:00:00]} 47. Kd4 {[%clk 0:00:00]}  g5 {[%clk 0:00:00]} 48. Ke5 {[%clk 0:00:00]}  g4 {[%clk 0:00:00]} 49. Rb7 {[%clk 0:00:00]}  g3 {[%clk 0:00:00]} 50. Ra7 {[%clk 0:00:00]}  g2 {[%clk 0:00:00]} 51. Ra1 {[%clk 0:00:00]}  Bc3+ {[%clk 0:00:00]} 52. Ke4 {[%clk 0:00:00]}  Bxa1 {[%clk 0:00:00]} 0-1


[Site "https://www.chess.com"]

[Event "Titled Tuesday Blitz May 2 Late 2023"]
[White "Stork, Oliver"]
[Black "Maranhao,Jose Renato Ruiz"]
[WhiteFideId "12955728"]
[BlackFideId "2135175"]
[WhiteElo "2239"]
[BlackElo "1970"]
[Result "1-0"]
[Round "01"]
[TimeControl "180+2"]
[Date "2023.05.02"]
[WhiteClock "0:00:00"]
[BlackClock "0:00:00"]

1. b3 {[%clk 0:00:01]}  Nf6 {[%clk 0:00:01]} 2. Bb2 {[%clk 0:00:01]}  d5 {[%clk 0:00:01]} 3. Nf3 {[%clk 0:00:01]}  Nc6 {[%clk 0:00:01]} 4. d3 {[%clk 0:00:01]}  Bg4 {[%clk 0:00:01]} 5. Nbd2 {[%clk 0:00:01]}  e6 {[%clk 0:00:01]} 6. g3 {[%clk 0:00:01]}  Bd6 {[%clk 0:00:01]} 7. Bg2 {[%clk 0:00:01]}  O-O {[%clk 0:00:01]} 8. O-O {[%clk 0:00:01]}  Re8 {[%clk 0:00:01]} 9. Qe1 {[%clk 0:00:01]}  Bb4 {[%clk 0:00:01]} 10. c3 {[%clk 0:00:01]}  Bf8 {[%clk 0:00:01]} 11. e4 {[%clk 0:00:01]}  e5 {[%clk 0:00:01]} 12. c4 {[%clk 0:00:01]}  d4 {[%clk 0:00:01]} 13. h3 {[%clk 0:00:01]}  Bd7 {[%clk 0:00:01]} 14. Nh2 {[%clk 0:00:01]}  Nb4 {[%clk 0:00:01]} 15. Qe2 {[%clk 0:00:01]}  Qc8 {[%clk 0:00:01]} 16. g4 {[%clk 0:00:01]}  c5 {[%clk 0:00:01]} 17. a3 {[%clk 0:00:01]}  Nc6 {[%clk 0:00:01]} 18. f4 {[%clk 0:00:01]}  a5 {[%clk 0:00:00]} 19. f5 {[%clk 0:00:01]}  Kh8 {[%clk 0:00:00]} 20. g5 {[%clk 0:00:01]}  Ng8 {[%clk 0:00:00]} 21. Ng4 {[%clk 0:00:01]}  a4 {[%clk 0:00:00]} 22. Qf2 {[%clk 0:00:00]}  axb3 {[%clk 0:00:00]} 23. Nxb3 {[%clk 0:00:00]}  Nd8 {[%clk 0:00:00]} 24. Qh4 {[%clk 0:00:00]}  Ba4 {[%clk 0:00:00]} 25. Nd2 {[%clk 0:00:00]}  Bc2 {[%clk 0:00:00]} 26. Rf3 {[%clk 0:00:00]}  Qc6 {[%clk 0:00:00]} 27. Raf1 {[%clk 0:00:00]}  Qb6 {[%clk 0:00:00]} 28. Bc1 {[%clk 0:00:00]}  Ra6 {[%clk 0:00:00]} 29. g6 {[%clk 0:00:00]}  fxg6 {[%clk 0:00:00]} 30. fxg6 {[%clk 0:00:00]} 1-0


[Site "https://www.chess.com"]

[Event "Titled Tuesday Blitz May 2 Late 2023"]
[White "Vargas, Mauricio"]
[Black "Maurizzi, Marc`Andria"]
[WhiteFideId "4404572"]
[BlackFideId "36083534"]
[WhiteElo "1998"]
[BlackElo "2421"]
[Result "0-1"]
[Round "01"]
[TimeControl "180+2"]
[Date "2023.05.02"]
[WhiteClock "0:00:00"]
[BlackClock "0:00:01"]

1. e4 {[%clk 0:00:01]}  e5 {[%clk 0:00:01]} 2. Nf3 {[%clk 0:00:01]}  Nf6 {[%clk 0:00:01]} 3. d4 {[%clk 0:00:01]}  Nxe4 {[%clk 0:00:01]} 4. dxe5 {[%clk 0:00:01]}  d5 {[%clk 0:00:01]} 5. exd6 {[%clk 0:00:01]}  Bxd6 {[%clk 0:00:01]} 6. Bd3 {[%clk 0:00:01]}  Nf6 {[%clk 0:00:01]} 7. O-O {[%clk 0:00:01]}  O-O {[%clk 0:00:01]} 8. Re1 {[%clk 0:00:01]}  h6 {[%clk 0:00:01]} 9. Bd2 {[%clk 0:00:01]}  Nc6 {[%clk 0:00:01]} 10. Bc3 {[%clk 0:00:01]}  Bg4 {[%clk 0:00:01]} 11. Nbd2 {[%clk 0:00:01]}  Nh5 {[%clk 0:00:01]} 12. h3 {[%clk 0:00:01]}  Bd7 {[%clk 0:00:01]} 13. Nd4 {[%clk 0:00:01]}  Nf4 {[%clk 0:00:01]} 14. Bc4 {[%clk 0:00:01]}  Qg5 {[%clk 0:00:01]} 15. Re3 {[%clk 0:00:00]}  Qxg2# {[%clk 0:00:01]} 0-1


[Site "https://www.chess.com"]

[Event "Titled Tuesday Blitz May 2 Late 2023"]
[White "Graif, William"]
[Black "Ismayilova, Khanim"]
[WhiteFideId "2609835"]
[BlackFideId "13429019"]
[WhiteElo "2205"]
[BlackElo "1633"]
[Result "1-0"]
[Round "01"]
[TimeControl "180+2"]
[Date "2023.05.02"]
[WhiteClock "0:00:00"]
[BlackClock "0:00:00"]

1. e4 {[%clk 0:00:01]}  c5 {[%clk 0:00:01]} 2. Nc3 {[%clk 0:00:01]}  Nc6 {[%clk 0:00:01]} 3. Bb5 {[%clk 0:00:01]}  g6 {[%clk 0:00:01]} 4. Bxc6 {[%clk 0:00:01]}  dxc6 {[%clk 0:00:01]} 5. d3 {[%clk 0:00:01]}  Bg7 {[%clk 0:00:01]} 6. Be3 {[%clk 0:00:01]}  b6 {[%clk 0:00:01]} 7. f4 {[%clk 0:00:01]}  e6 {[%clk 0:00:01]} 8. Nf3 {[%clk 0:00:01]}  Ne7 {[%clk 0:00:01]} 9. O-O {[%clk 0:00:01]}  O-O {[%clk 0:00:01]} 10. Qe1 {[%clk 0:00:01]}  f5 {[%clk 0:00:01]} 11. Qh4 {[%clk 0:00:01]}  Qd6 {[%clk 0:00:01]} 12. Rad1 {[%clk 0:00:01]}  Ba6 {[%clk 0:00:01]} 13. Rfe1 {[%clk 0:00:01]}  Rae8 {[%clk 0:00:00]} 14. Bc1 {[%clk 0:00:01]}  Nc8 {[%clk 0:00:00]} 15. Kh1 {[%clk 0:00:01]}  Qd7 {[%clk 0:00:00]} 16. Ne2 {[%clk 0:00:00]}  Nd6 {[%clk 0:00:00]} 17. b3 {[%clk 0:00:00]}  Nb5 {[%clk 0:00:00]} 18. Ne5 {[%clk 0:00:00]}  Qc7 {[%clk 0:00:00]} 19. a4 {[%clk 0:00:00]}  Nd4 {[%clk 0:00:00]} 20. Nxd4 {[%clk 0:00:00]}  cxd4 {[%clk 0:00:00]} 21. Nf3 {[%clk 0:00:00]}  c5 {[%clk 0:00:00]} 22. exf5 {[%clk 0:00:00]}  exf5 {[%clk 0:00:00]} 23. Ng5 {[%clk 0:00:00]}  Bf6 {[%clk 0:00:00]} 24. Qh3 {[%clk 0:00:00]}  Bxg5 {[%clk 0:00:00]} 25. fxg5 {[%clk 0:00:00]}  Bb7 {[%clk 0:00:00]} 26. Kg1 {[%clk 0:00:00]}  Qc6 {[%clk 0:00:00]} 27. Bf4 {[%clk 0:00:00]}  Qd5 {[%clk 0:00:00]} 28. Qg3 {[%clk 0:00:00]}  Re6 {[%clk 0:00:00]} 29. Rxe6 {[%clk 0:00:00]}  Qxe6 {[%clk 0:00:00]} 30. Re1 {[%clk 0:00:00]}  Qd7 {[%clk 0:00:00]} 31. Bd6 {[%clk 0:00:00]}  Re8 {[%clk 0:00:00]} 32. Re5 {[%clk 0:00:00]}  Kf7 {[%clk 0:00:00]} 33. Qh4 {[%clk 0:00:00]}  Kg8 {[%clk 0:00:00]} 34. Qe1 {[%clk 0:00:00]}  Kf7 {[%clk 0:00:00]} 35. h4 {[%clk 0:00:00]}  Rxe5 {[%clk 0:00:00]} 36. Qxe5 {[%clk 0:00:00]}  Qe6 {[%clk 0:00:00]} 37. Qxe6+ {[%clk 0:00:00]}  Kxe6 {[%clk 0:00:00]} 38. Bb8 {[%clk 0:00:00]}  a6 {[%clk 0:00:00]} 39. Ba7 {[%clk 0:00:00]}  b5 {[%clk 0:00:00]} 40. Bxc5 {[%clk 0:00:00]}  Kd5 {[%clk 0:00:00]} 41. Bb6 {[%clk 0:00:00]}  bxa4 {[%clk 0:00:00]} 42. bxa4 {[%clk 0:00:00]}  Bc6 {[%clk 0:00:00]} 43. a5 {[%clk 0:00:00]}  Ba4 {[%clk 0:00:00]} 44. Kf2 {[%clk 0:00:00]}  Bxc2 {[%clk 0:00:00]} 45. Ke2 {[%clk 0:00:00]}  Bb1 {[%clk 0:00:00]} 46. Kd2 {[%clk 0:00:00]}  Ba2 {[%clk 0:00:00]} 47. Kc2 {[%clk 0:00:00]}  Kc6 {[%clk 0:00:00]} 48. Bxd4 {[%clk 0:00:00]}  Bd5 {[%clk 0:00:00]} 49. g3 {[%clk 0:00:00]}  Kb5 {[%clk 0:00:00]} 50. Bb6 {[%clk 0:00:00]}  Kb4 {[%clk 0:00:00]} 51. Kd2 {[%clk 0:00:00]}  Kb5 {[%clk 0:00:00]} 52. Ke3 {[%clk 0:00:00]}  Kc6 {[%clk 0:00:00]} 53. Kd4 {[%clk 0:00:00]}  Bg2 {[%clk 0:00:00]} 54. Ke5 {[%clk 0:00:00]}  Kd7 {[%clk 0:00:00]} 55. Kf6 {[%clk 0:00:00]}  Ke8 {[%clk 0:00:00]} 56. Kg7 {[%clk 0:00:00]}  Ke7 {[%clk 0:00:00]} 57. Kxh7 {[%clk 0:00:00]}  Kf7 {[%clk 0:00:00]} 58. h5 {[%clk 0:00:00]}  gxh5 {[%clk 0:00:00]} 59. g6+ {[%clk 0:00:00]}  Kf6 {[%clk 0:00:00]} 60. g7 {[%clk 0:00:00]}  Bd5 {[%clk 0:00:00]} 61. g8=Q {[%clk 0:00:00]}  Bxg8+ {[%clk 0:00:00]} 62. Kxg8 {[%clk 0:00:00]}  Kg5 {[%clk 0:00:00]} 63. d4 {[%clk 0:00:00]}  f4 {[%clk 0:00:00]} 64. gxf4+ {[%clk 0:00:00]}  Kxf4 {[%clk 0:00:00]} 65. Kf7 {[%clk 0:00:00]}  h4 {[%clk 0:00:00]} 66. Ke6 {[%clk 0:00:00]}  Ke4 {[%clk 0:00:00]} 67. d5 {[%clk 0:00:00]}  h3 {[%clk 0:00:00]} 68. Bc7 {[%clk 0:00:00]}  Kd4 {[%clk 0:00:00]} 69. Bh2 {[%clk 0:00:00]}  Kc5 {[%clk 0:00:00]} 70. d6 {[%clk 0:00:00]}  Kc6 {[%clk 0:00:00]} 71. d7 {[%clk 0:00:00]}  Kb5 {[%clk 0:00:00]} 72. d8=Q {[%clk 0:00:00]}  Ka4 {[%clk 0:00:00]} 73. Qd5 {[%clk 0:00:00]}  Kb4 {[%clk 0:00:00]} 74. Ke5 {[%clk 0:00:00]}  Ka4 {[%clk 0:00:00]} 75. Qc5 {[%clk 0:00:00]}  Kb3 {[%clk 0:00:00]} 76. Qd4 {[%clk 0:00:00]}  Ka2 {[%clk 0:00:00]} 77. Qc3 {[%clk 0:00:00]}  Kb1 {[%clk 0:00:00]} 78. Qd2 {[%clk 0:00:00]}  Ka1 {[%clk 0:00:00]} 79. Kd4 {[%clk 0:00:00]}  Kb1 {[%clk 0:00:00]} 80. Kc3 {[%clk 0:00:00]}  Ka1 {[%clk 0:00:00]} 81. Qb2# {[%clk 0:00:00]} 1-0


[Site "https://www.chess.com"]

[Event "Titled Tuesday Blitz May 2 Late 2023"]
[White "Viasus, Juan Diego"]
[Black "Karas, Marek"]
[WhiteFideId "4464346"]
[BlackFideId "14928558"]
[WhiteElo "1249"]
[BlackElo "2233"]
[Result "0-1"]
[Round "01"]
[TimeControl "180+2"]
[Date "2023.05.02"]
[WhiteClock "0:00:00"]
[BlackClock "0:00:00"]

1. d4 {[%clk 0:00:01]}  Nf6 {[%clk 0:00:01]} 2. Bf4 {[%clk 0:00:01]}  d5 {[%clk 0:00:01]} 3. e3 {[%clk 0:00:01]}  c5 {[%clk 0:00:01]} 4. c3 {[%clk 0:00:01]}  Nc6 {[%clk 0:00:01]} 5. Nd2 {[%clk 0:00:01]}  Qb6 {[%clk 0:00:01]} 6. Qb3 {[%clk 0:00:01]}  c4 {[%clk 0:00:01]} 7. Qxb6 {[%clk 0:00:01]}  axb6 {[%clk 0:00:01]} 8. Ngf3 {[%clk 0:00:01]}  Bf5 {[%clk 0:00:01]} 9. Nh4 {[%clk 0:00:01]}  Bg6 {[%clk 0:00:01]} 10. Nxg6 {[%clk 0:00:01]}  hxg6 {[%clk 0:00:01]} 11. Be2 {[%clk 0:00:01]}  e6 {[%clk 0:00:01]} 12. f3 {[%clk 0:00:01]}  b5 {[%clk 0:00:01]} 13. e4 {[%clk 0:00:01]}  Be7 {[%clk 0:00:01]} 14. O-O {[%clk 0:00:01]}  O-O {[%clk 0:00:01]} 15. a3 {[%clk 0:00:01]}  Nd7 {[%clk 0:00:01]} 16. Be3 {[%clk 0:00:01]}  Nb6 {[%clk 0:00:01]} 17. Bd1 {[%clk 0:00:01]}  Rfe8 {[%clk 0:00:01]} 18. f4 {[%clk 0:00:01]}  dxe4 {[%clk 0:00:01]} 19. Nxe4 {[%clk 0:00:01]}  Nd5 {[%clk 0:00:01]} 20. Bf2 {[%clk 0:00:01]}  Nxf4 {[%clk 0:00:01]} 21. a4 {[%clk 0:00:01]}  b4 {[%clk 0:00:00]} 22. Nc5 {[%clk 0:00:01]}  Bxc5 {[%clk 0:00:00]} 23. dxc5 {[%clk 0:00:01]}  b3 {[%clk 0:00:00]} 24. Bg3 {[%clk 0:00:01]}  Nd3 {[%clk 0:00:00]} 25. Rf3 {[%clk 0:00:00]}  Nxb2 {[%clk 0:00:00]} 26. Be2 {[%clk 0:00:00]}  Rxa4 {[%clk 0:00:00]} 27. Raf1 {[%clk 0:00:00]}  f6 {[%clk 0:00:00]} 28. Bh4 {[%clk 0:00:00]}  g5 {[%clk 0:00:00]} 0-1


[Site "https://www.chess.com"]

[Event "Titled Tuesday Blitz May 2 Late 2023"]
[White "Firouzja, Alireza"]
[Black "Mendez Fortes, Eduardo Jesus"]
[WhiteFideId "12573981"]
[BlackFideId "3502376"]
[WhiteElo "2904"]
[BlackElo "2307"]
[Result "1-0"]
[Round "02"]
[TimeControl "180+2"]
[Date "2023.05.02"]
[WhiteClock "0:00:53"]
[BlackClock "0:00:14"]

1. d4 {[%clk 0:02:58]}  Nf6 {[%clk 0:02:59]} 2. Bg5 {[%clk 0:02:54]}  d5 {[%clk 0:02:59]} 3. e3 {[%clk 0:02:54]}  c5 {[%clk 0:02:56]} 4. Bxf6 {[%clk 0:02:53]}  gxf6 {[%clk 0:02:57]} 5. dxc5 {[%clk 0:02:53]}  Qa5+ {[%clk 0:02:57]} 6. Nd2 {[%clk 0:02:47]}  e6 {[%clk 0:02:52]} 7. a3 {[%clk 0:02:43]}  Qxc5 {[%clk 0:02:50]} 8. c4 {[%clk 0:02:43]}  Nc6 {[%clk 0:02:45]} 9. Ngf3 {[%clk 0:02:35]}  d4 {[%clk 0:02:33]} 10. Nb3 {[%clk 0:02:24]}  Qb6 {[%clk 0:02:18]} 11. exd4 {[%clk 0:02:23]}  Bg7 {[%clk 0:02:07]} 12. c5 {[%clk 0:02:18]}  Qc7 {[%clk 0:02:03]} 13. Be2 {[%clk 0:02:18]}  Bd7 {[%clk 0:02:03]} 14. O-O {[%clk 0:02:18]}  O-O {[%clk 0:02:01]} 15. Qc2 {[%clk 0:02:16]}  Ne7 {[%clk 0:01:53]} 16. Nbd2 {[%clk 0:01:57]}  Bc6 {[%clk 0:01:49]} 17. Rad1 {[%clk 0:01:50]}  Rad8 {[%clk 0:01:47]} 18. Nc4 {[%clk 0:01:44]}  Nf5 {[%clk 0:01:43]} 19. Qc3 {[%clk 0:01:43]}  Rd7 {[%clk 0:01:36]} 20. Ne3 {[%clk 0:01:40]}  Ne7 {[%clk 0:01:19]} 21. Nd2 {[%clk 0:01:28]}  Rfd8 {[%clk 0:01:13]} 22. Ndc4 {[%clk 0:01:28]}  Nd5 {[%clk 0:00:59]} 23. Nxd5 {[%clk 0:01:27]}  Rxd5 {[%clk 0:00:57]} 24. Bf3 {[%clk 0:01:23]}  Rg5 {[%clk 0:00:42]} 25. Nd6 {[%clk 0:01:13]}  Bf8 {[%clk 0:00:27]} 26. h4 {[%clk 0:01:09]}  Rg7 {[%clk 0:00:27]} 27. d5 {[%clk 0:01:08]}  exd5 {[%clk 0:00:26]} 28. Nf5 {[%clk 0:01:04]}  d4 {[%clk 0:00:23]} 29. Rxd4 {[%clk 0:00:59]}  Rxd4 {[%clk 0:00:22]} 30. Qxd4 {[%clk 0:00:59]}  Bxf3 {[%clk 0:00:20]} 31. Nxg7 {[%clk 0:00:58]}  Bxc5 {[%clk 0:00:19]} 32. Qxf6 {[%clk 0:00:56]}  Bc6 {[%clk 0:00:17]} 33. Nf5 {[%clk 0:00:54]}  Qf4 {[%clk 0:00:14]} 34. Qg7# {[%clk 0:00:53]} 1-0


[Site "https://www.chess.com"]

[Event "Titled Tuesday Blitz May 2 Late 2023"]
[White "Duda, Jan-Krzysztof"]
[Black "Taichman, Ori"]
[WhiteFideId "1170546"]
[BlackFideId "2804069"]
[WhiteElo "2790"]
[BlackElo "2237"]
[Result "1-0"]
[Round "02"]
[TimeControl "180+2"]
[Date "2023.05.02"]
[WhiteClock "0:01:17"]
[BlackClock "0:00:07"]

1. e4 {[%clk 0:03:00]}  e5 {[%clk 0:02:58]} 2. Nf3 {[%clk 0:02:59]}  d6 {[%clk 0:02:59]} 3. d4 {[%clk 0:02:58]}  exd4 {[%clk 0:03:00]} 4. Nxd4 {[%clk 0:02:59]}  Nf6 {[%clk 0:03:00]} 5. Nc3 {[%clk 0:02:59]}  Be7 {[%clk 0:03:01]} 6. Be3 {[%clk 0:02:52]}  O-O {[%clk 0:03:00]} 7. Qd2 {[%clk 0:02:53]}  d5 {[%clk 0:02:52]} 8. exd5 {[%clk 0:02:50]}  Nxd5 {[%clk 0:02:53]} 9. Nxd5 {[%clk 0:02:49]}  Qxd5 {[%clk 0:02:51]} 10. Be2 {[%clk 0:02:49]}  Rd8 {[%clk 0:02:19]} 11. O-O {[%clk 0:02:41]}  c5 {[%clk 0:02:13]} 12. Nf3 {[%clk 0:02:40]}  Qxd2 {[%clk 0:02:13]} 13. Nxd2 {[%clk 0:02:41]}  Nc6 {[%clk 0:02:05]} 14. c3 {[%clk 0:02:41]}  b6 {[%clk 0:02:02]} 15. Bf3 {[%clk 0:02:35]}  Bb7 {[%clk 0:02:02]} 16. Rfe1 {[%clk 0:02:34]}  Bf6 {[%clk 0:02:02]} 17. Nc4 {[%clk 0:02:31]}  Rd7 {[%clk 0:01:58]} 18. Bf4 {[%clk 0:02:27]}  Rad8 {[%clk 0:01:50]} 19. Nd6 {[%clk 0:02:19]}  Ba8 {[%clk 0:01:44]} 20. Bg3 {[%clk 0:02:14]}  Ne5 {[%clk 0:01:04]} 21. Bxa8 {[%clk 0:02:00]}  Rxa8 {[%clk 0:00:48]} 22. Rxe5 {[%clk 0:01:58]}  Rxd6 {[%clk 0:00:48]} 23. Rxc5 {[%clk 0:01:58]}  Rd2 {[%clk 0:00:39]} 24. Rb5 {[%clk 0:01:59]}  Rad8 {[%clk 0:00:38]} 25. h4 {[%clk 0:01:59]}  Rd1+ {[%clk 0:00:26]} 26. Rxd1 {[%clk 0:01:58]}  Rxd1+ {[%clk 0:00:27]} 27. Kh2 {[%clk 0:01:59]}  Rb1 {[%clk 0:00:28]} 28. a4 {[%clk 0:01:56]}  g6 {[%clk 0:00:26]} 29. h5 {[%clk 0:01:54]}  gxh5 {[%clk 0:00:26]} 30. Bb8 {[%clk 0:01:54]}  a6 {[%clk 0:00:24]} 31. Rb4 {[%clk 0:01:48]}  b5 {[%clk 0:00:21]} 32. axb5 {[%clk 0:01:42]}  axb5 {[%clk 0:00:12]} 33. Bf4 {[%clk 0:01:17]}  Kg7 {[%clk 0:00:11]} 34. Rxb5 {[%clk 0:01:17]}  Bxc3 {[%clk 0:00:11]} 35. Rg5+ {[%clk 0:01:17]}  Kf6 {[%clk 0:00:09]} 36. bxc3 {[%clk 0:01:18]}  Rb2 {[%clk 0:00:09]} 37. Be3 {[%clk 0:01:17]}  Rc2 {[%clk 0:00:09]} 38. Rxh5 {[%clk 0:01:17]}  Kg6 {[%clk 0:00:07]} 39. Rh6+ {[%clk 0:01:17]}  Kg7 {[%clk 0:00:07]} 40. Rh3 {[%clk 0:01:17]} 1-0


[Site "https://www.chess.com"]